bitfinex-derivatives/quotes_ETHF0:USTF0_20240920
["timestamp","ask_amount","ask_price","bid_price","bid_amount"]
[1726816304568,4.81111,2556.7,2556.3,0.3833]
[1726816304982,4.42,2556.7,2556.3,0.77446]
[1726816305276,4.42,2556.7,2556.3,0.3833]
[1726816305471,4.40401,2556.7,2556.3,0.3833]
[1726816305977,4.0129,2556.7,2556.3,0.3833]
[1726816306166,4.0129,2556.7,2556.4,0.39114]
[1726816306374,3.6037,2556.7,2556.4,0.39115]
[1726816306575,3.6037,2556.7,2556.5,0.3828]
[1726816306870,3.2078,2556.7,2556.5,0.3828]
[1726816307467,3.2078,2557.0,2556.6,0.4098]
[1726816307667,3.2078,2557.0,2556.6,0.80092]
[1726816307872,3.2078,2557.0,2556.6,0.4098]
[1726816308077,3.2078,2557.0,2556.6,0.80091]
[1726816308276,3.2078,2557.0,2556.6,0.4098]
[1726816308976,3.2078,2557.0,2556.6,0.80092]
[1726816309179,3.2078,2557.0,2556.6,0.4098]
[1726816309374,3.2078,2557.0,2556.6,0.80092]
[1726816309579,0.3932,2557.1,2556.6,0.4098]
[1726816310482,0.3932,2557.1,2556.6,0.80091]
[1726816310681,0.3932,2557.1,2556.6,0.4098]
[1726816310882,0.78424,2557.1,2556.6,0.4098]
[1726816311081,0.78424,2557.1,2556.5,0.3828]
[1726816311082,3.76,2556.9,2556.5,0.3828]
[1726816311482,0.3911,2556.8,2556.5,0.3828]
[1726816311683,0.3983,2556.7,2556.5,0.3828]
[1726816312688,3.76,2556.9,2556.5,0.3828]
[1726816313181,3.6061,2557.0,2556.5,0.77393]
[1726816313682,3.6061,2557.0,2556.5,0.3828]
[1726816313989,3.05,2556.9,2556.5,0.77393]
[1726816314187,3.05,2556.9,2556.5,0.3828]
[1726816314975,0.39108,2556.9,2556.5,0.3828]
[1726816315279,3.05,2556.7,2556.5,0.77393]
[1726816315483,0.78937,2557.0,2556.5,0.77393]
[1726816315684,3.05,2556.8,2556.5,0.77393]
[1726816318089,3.05,2556.8,2556.3,0.3833]
[1726816318090,3.05,2556.6,2556.3,0.77447]
[1726816318292,0.4135,2556.5,2556.3,0.77447]
[1726816319083,0.4135,2556.5,2556.3,0.3833]
[1726816319494,4.51199,2557.5,2556.5,0.39113]
[1726816319697,0.3968,2557.4,2556.8,3.05]
[1726816319896,0.7878,2557.4,2556.9,0.38]
[1726816320097,3.05,2557.3,2556.9,0.38]
[1726816320301,3.05,2557.3,2556.9,0.77107]
[1726816320493,3.05,2557.3,2556.9,0.38]
[1726816320805,3.05,2557.3,2556.9,0.77107]
[1726816321402,0.7878,2557.4,2556.7,3.5989]
[1726816321403,3.05,2557.1,2556.7,3.5989]
[1726816321700,0.3836,2557.0,2556.7,3.5989]
[1726816322006,0.7968,2557.0,2556.7,3.5989]
[1726816323199,3.8468,2557.0,2556.7,3.5989]
[1726816324094,3.05,2556.8,2556.4,0.39114]
[1726816324296,3.44113,2556.6,2556.2,0.60579867]
[1726816324502,0.76,2556.5,2556.2,0.60579867]
[1726816324700,0.76,2556.5,2556.2,0.99697867]
[1726816324899,0.76,2556.5,2556.2,0.60579867]
[1726816325102,0.76,2556.5,2556.2,0.99697867]
[1726816325502,0.76,2556.5,2556.3,0.39117]
[1726816325701,0.3745,2556.5,2556.2,0.99697867]
[1726816327306,0.3745,2556.5,2556.2,0.39118]
[1726816327812,0.3745,2556.5,2556.4,0.39115]
[1726816328002,0.7957,2556.9,2556.5,0.39113]
[1726816328210,3.2078,2557.0,2556.5,3.4554]
[1726816328510,3.2078,2557.0,2556.7,0.3911]
[1726816328711,0.3735,2557.1,2556.8,0.39109]
[1726816329100,0.3735,2557.1,2556.7,0.3911]
[1726816329599,0.3735,2557.1,2556.6,0.3877]
[1726816329798,0.3735,2557.1,2556.8,0.39108]
[1726816330306,0.3735,2557.1,2556.7,0.3911]
[1726816330802,0.3735,2557.1,2556.7,3.05]
[1726816331005,0.3735,2557.1,2556.9,0.39107]
[1726816331800,0.3735,2557.1,2557.0,0.39106]
[1726816331995,3.2078,2557.4,2557.0,3.05]
[1726816332202,0.7789,2557.8,2557.7,0.39095]
[1726816332502,0.7865,2558.3,2557.8,0.39094]
[1726816332712,1.1915,2558.3,2557.9,3.44092]
[1726816333004,1.1915,2558.3,2558.1,3.05]
[1726816333222,0.7789,2558.3,2558.1,3.05]
[1726816333395,0.7789,2558.3,2558.2,3.05]
[1726816333914,0.7789,2558.3,2557.8,8.2773]
[1726816334098,0.7789,2558.3,2557.9,0.39092]
[1726816335110,0.7789,2558.3,2558.0,0.3909]
[1726816335308,0.39079,2558.8,2558.1,3.75]
[1726816335504,0.39078,2558.9,2558.2,0.39087]
[1726816335806,3.2078,2558.8,2558.4,0.39084]
[1726816336008,3.2078,2558.8,2558.3,0.39085]
[1726816336207,0.3995,2558.9,2558.4,0.39084]
[1726816336606,3.2078,2559.6,2558.7,3.75]
[1726816336806,0.3851,2559.6,2558.9,0.39075]
[1726816337014,0.3851,2559.6,2558.7,6.9578]
[1726816337211,0.7654,2559.6,2559.0,0.39074]
[1726816338209,3.2078,2559.3,2558.7,3.2078]
[1726816338509,3.2078,2559.3,2558.8,3.2078]
[1726816338818,0.39074,2559.1,2558.5,0.7921]
[1726816339012,3.2078,2559.3,2558.5,0.7921]
[1726816339013,0.3975,2559.0,2558.5,0.7921]
[1726816339208,0.3975,2559.0,2558.5,1.18293]
[1726816339720,0.3975,2559.0,2558.5,0.7921]
[1726816339916,0.3975,2559.0,2558.6,0.3908]
[1726816340111,0.3975,2559.0,2558.5,0.7921]
[1726816340307,0.3995,2559.5,2558.8,0.39078]
[1726816340904,0.3995,2559.5,2558.6,6.9578]
[1726816341126,0.3995,2559.5,2558.9,0.39076]
[1726816341305,0.3995,2559.5,2559.0,0.39075]
[1726816341613,0.3995,2559.5,2558.9,0.39076]
[1726816341819,0.3995,2559.5,2558.8,0.39078]
[1726816342013,4.1495,2559.5,2558.8,0.39078]
[1726816342413,3.5929,2559.6,2558.6,3.2078]
[1726816342617,3.5929,2559.6,2558.9,0.39076]
[1726816342811,3.98357,2559.6,2558.9,0.39076]
[1726816343114,3.5929,2559.6,2558.9,0.39076]
[1726816343318,3.98356,2559.6,2558.9,0.39076]
[1726816344411,3.5929,2559.6,2559.0,0.39075]
[1726816344714,3.5929,2559.6,2559.2,0.39072]
[1726816345020,0.3851,2559.6,2559.4,0.39069]
[1726816345209,11.0788,2560.1,2559.5,0.39067]
[1726816345515,4.0202,2560.1,2559.3,3.2078]
[1726816345721,0.8124,2560.1,2559.4,0.3982]
[1726816345914,0.8124,2560.1,2559.8,0.39062]
[1726816346115,3.2078,2560.5,2559.6,3.2078]
[1726816346309,3.6112,2560.5,2559.7,0.4105]
[1726816346516,3.6112,2560.5,2559.7,0.8245]
[1726816346825,0.39046,2561.0,2559.9,6.9578]
[1726816347022,4.4081,2561.1,2560.0,0.3982]
[1726816347218,4.4081,2561.1,2560.1,4.122]
[1726816347219,3.2078,2560.8,2560.1,4.122]
[1726816347417,3.2078,2560.8,2560.2,0.39057]
[1726816347621,8.54854,2561.1,2560.4,0.39054]
[1726816347817,3.2078,2560.8,2560.1,4.122]
[1726816348022,3.2078,2560.8,2560.2,0.39056]
[1726816348215,3.2078,2560.8,2560.1,4.122]
[1726816348516,4.4081,2561.1,2560.1,4.122]
[1726816348718,4.4081,2561.1,2560.2,3.2078]
[1726816349115,4.4081,2561.1,2560.4,0.39054]
[1726816349421,4.4081,2561.1,2560.3,0.3963]
[1726816349621,4.4081,2561.1,2560.5,0.39051]
[1726816350030,4.4081,2561.1,2560.6,0.3905]
[1726816350513,4.4081,2561.1,2560.6,0.39051]
[1726816350913,4.4081,2561.1,2560.7,0.39048]
[1726816350914,0.4118,2561.1,2560.7,0.39048]
[1726816351114,3.2078,2561.5,2560.9,3.2078]
[1726816351316,3.2078,2561.5,2561.2,0.39041]
[1726816351523,3.2078,2561.9,2560.9,3.2078]
[1726816351820,3.2078,2561.9,2561.3,0.3904]
[1726816352017,3.2078,2561.9,2561.3,4.5104]
[1726816352523,3.2078,2561.9,2561.4,0.39039]
[1726816352726,3.2078,2561.9,2561.3,4.51039]
[1726816355116,3.2078,2561.9,2561.3,4.12]
[1726816355320,3.2078,2561.9,2561.5,0.39037]
[1726816355518,3.2078,2561.9,2561.4,4.31772175]
[1726816355722,3.2078,2561.9,2561.6,0.39035]
[1726816355919,0.4078,2562.3,2561.6,3.9032]
[1726816356115,0.4078,2562.3,2561.8,0.39032]
[1726816356313,4.1578,2562.3,2561.8,0.39032]
[1726816356520,3.75,2562.0,2561.6,4.47555627]
[1726816356720,3.75,2562.0,2561.2,3.2078]
[1726816356916,0.39031,2561.9,2561.3,4.119]
[1726816357123,3.75,2562.0,2561.3,4.5094]
[1726816357320,3.59809,2562.1,2561.3,4.119]
[1726816357321,3.2078,2562.1,2561.3,4.119]
[1726816357522,4.1578,2562.3,2561.5,0.39036]
[1726816357523,4.54806,2562.3,2561.5,0.39036]
[1726816357727,3.2078,2562.1,2561.4,0.39038]
[1726816357920,4.54806,2562.3,2561.5,0.39037]
[1726816358228,0.39027,2562.2,2561.4,0.39038]
[1726816358426,4.1578,2562.3,2561.3,4.119]
[1726816358726,0.4078,2562.3,2561.5,7.60093825]
[1726816359029,0.4078,2562.3,2561.6,0.39035]
[1726816359432,3.2078,2562.1,2561.6,0.39035]
[1726816359918,3.2078,2562.1,2561.5,3.2078]
[1726816360122,6.9578,2562.1,2561.5,3.2078]
[1726816360325,3.2078,2562.1,2561.5,3.2078]
[1726816361829,3.2078,2562.1,2561.5,7.3258]
[1726816361830,3.75,2562.0,2561.5,7.3258]
[1726816362028,3.75,2562.0,2561.5,3.2078]
[1726816362226,3.2078,2562.1,2561.5,3.2078]
[1726816364232,3.59808,2562.1,2561.5,3.2078]
[1726816364823,3.75,2562.0,2561.5,3.2078]
[1726816365128,3.2078,2561.7,2561.1,3.6165]
[1726816365426,0.8016,2561.6,2561.1,4.00692]
[1726816367134,0.8016,2561.6,2561.1,3.6165]
[1726816367439,0.8016,2561.6,2561.1,4.00693]
[1726816367932,3.2078,2561.4,2561.1,0.4087]
[1726816368434,0.8016,2561.6,2561.1,0.4087]
[1726816369835,0.39041,2561.3,2560.8,3.2078]
[1726816370830,3.5982,2561.4,2560.8,3.2078]
[1726816371039,0.3904,2561.3,2560.8,3.2078]
[1726816371433,3.59819,2561.4,2560.8,3.59827]
[1726816371629,3.59819,2561.4,2560.8,4.00677]
[1726816371939,0.39041,2561.3,2560.8,3.6163]
[1726816372137,3.5982,2561.4,2560.8,4.00678]
[1726816372342,3.5982,2561.4,2560.8,3.6163]
[1726816373635,0.3904,2561.3,2560.8,3.6163]
[1726816373944,3.2078,2561.4,2560.8,3.2078]
[1726816374245,0.39042,2561.2,2560.8,3.2078]
[1726816374743,3.2078,2560.9,2560.5,0.388]
[1726816374943,0.3809,2560.8,2560.5,0.77852]
[1726816375334,0.3809,2560.8,2560.6,0.39051]
[1726816375529,3.2078,2560.9,2560.7,0.39049]
[1726816375839,3.2078,2560.9,2560.5,0.388]
[1726816376045,3.2078,2560.9,2560.5,0.77852]
[1726816376837,3.2078,2560.9,2560.5,0.388]
[1726816377140,0.7717,2561.1,2560.5,0.77851]
[1726816377737,0.7717,2561.1,2560.6,0.39051]
[1726816378041,0.7717,2561.1,2560.5,0.77852]
[1726816378250,0.7717,2561.1,2560.5,0.388]
[1726816378436,0.7717,2561.1,2560.5,0.77852]
[1726816378637,0.7717,2561.1,2560.6,0.3905]
[1726816378946,0.7717,2561.1,2560.6,4.0064]
[1726816379139,3.2078,2561.2,2560.6,4.0064]
[1726816379837,3.2078,2561.2,2560.8,0.39048]
[1726816380037,0.8005,2561.3,2560.7,0.39048]
[1726816380748,0.8005,2561.3,2560.8,0.39047]
[1726816380940,0.8005,2561.3,2560.9,0.39046]
[1726816381141,0.3943,2561.3,2561.0,0.4045]
[1726816381345,0.3943,2561.3,2561.0,0.7941]
[1726816381650,0.3943,2561.3,2560.6,3.6159]
[1726816381946,3.2078,2561.1,2560.7,0.3739]
[1726816384340,0.4116,2561.2,2560.7,0.76439]
[1726816384845,0.4116,2561.2,2560.7,0.3739]
[1726816385042,0.4116,2561.2,2560.7,0.76438]
[1726816385631,0.4116,2561.2,2560.7,0.3739]
[1726816385836,0.4116,2561.2,2560.7,0.76439]
[1726816386034,0.4116,2561.2,2560.7,0.3739]
[1726816386446,3.2078,2561.1,2560.7,0.3739]
[1726816387534,3.2078,2561.1,2560.7,0.76439]
[1726816388849,3.2078,2561.1,2560.8,0.39047]
[1726816389242,3.2078,2561.1,2560.7,0.3739]
[1726816389444,0.4116,2561.2,2560.8,0.39047]
[1726816389643,0.4116,2561.2,2560.8,0.39048]
[1726816389944,0.4116,2561.2,2560.8,0.4139]
[1726816390247,0.80202,2561.2,2560.8,0.4139]
[1726816390446,3.2078,2561.1,2560.7,0.76439]
[1726816391452,3.2078,2561.1,2560.7,0.3739]
[1726816392046,3.59823,2561.1,2560.7,0.3739]
[1726816392342,3.59824,2561.1,2560.7,0.3739]
[1726816392645,3.2078,2561.1,2560.7,0.3739]
[1726816393152,3.2078,2561.1,2560.7,0.76439]
[1726816393341,3.2078,2561.1,2560.7,0.3739]
[1726816393342,6.2578,2561.1,2560.7,0.3739]
[1726816393542,0.78495,2561.0,2560.7,0.3739]
[1726816393948,0.3945,2561.0,2560.7,0.3739]
[1726816395254,0.78495,2561.0,2560.7,0.3739]
[1726816395550,0.3945,2561.0,2560.7,0.3739]
[1726816396450,0.78495,2561.0,2560.7,0.3739]
[1726816396642,0.3945,2561.0,2560.7,0.3739]
[1726816396843,3.2078,2560.8,2560.3,3.2078]
[1726816397043,0.39052,2560.6,2560.3,3.2078]
[1726816397346,3.2078,2560.5,2559.9,10.21420569]
[1726816397545,7.3288,2561.1,2560.3,3.05]
[1726816397744,7.3288,2561.1,2560.4,0.7867]
[1726816397745,1.1849,2561.0,2560.4,0.7867]
[1726816398055,3.59829,2560.8,2560.4,0.7867]
[1726816398553,0.39049,2560.7,2560.4,0.7867]
[1726816400053,3.2078,2560.5,2560.0,3.5984]
[1726816400251,0.7938,2560.4,2560.1,0.39058]
[1726816400462,0.7938,2560.4,2560.0,0.39059]
[1726816400639,0.7938,2560.4,2560.1,0.39058]
[1726816401050,0.7938,2560.4,2560.0,0.39059]
[1726816401241,1.18434,2560.4,2559.9,3.83591]
[1726816401954,0.7938,2560.4,2559.9,3.83591]
[1726816402143,3.2078,2560.2,2559.9,3.83591]
[1726816402545,0.7938,2560.4,2559.9,3.4453]
[1726816402847,0.7938,2560.4,2560.1,3.05]
[1726816403055,3.2078,2560.7,2560.3,3.05]
[1726816403056,0.4028,2560.7,2560.3,3.05]
[1726816403352,0.798,2560.8,2560.5,3.44051]
[1726816403551,4.121,2560.9,2560.7,3.05]
[1726816403747,3.2078,2561.0,2560.7,3.05]
[1726816403941,3.2078,2561.0,2560.6,0.4049]
[1726816403942,0.39047,2560.9,2560.6,0.4049]
[1726816404247,3.59826,2561.0,2560.6,0.4049]
[1726816404655,0.39047,2560.9,2560.6,0.4049]
[1726816404953,3.2078,2561.0,2560.6,0.4049]
[1726816405141,3.59825,2561.0,2560.6,0.4049]
[1726816405547,3.2078,2561.0,2560.6,0.4049]
[1726816405954,3.59825,2561.0,2560.6,0.4049]
[1726816406255,3.2078,2561.0,2560.6,0.4049]
[1726816406446,3.59825,2561.0,2560.6,0.4049]
[1726816406753,3.2078,2561.0,2560.6,0.4049]
[1726816407753,3.2078,2561.0,2560.6,0.79541]
[1726816408060,3.2078,2561.0,2560.6,0.4049]
[1726816408857,3.2078,2560.7,2560.2,0.98848424]
[1726816409157,1.18741,2560.6,2560.1,0.7794]
[1726816409352,1.18741,2560.6,2560.1,0.3766]
[1726816409353,0.39053,2560.5,2560.1,0.3766]
[1726816409559,4.62732,2560.6,2560.1,0.3766]
[1726816410057,0.39053,2560.5,2560.1,0.3766]
[1726816410243,4.2368,2560.6,2560.1,0.3766]
[1726816410446,1.1868,2560.6,2560.1,0.3766]
[1726816410655,1.1868,2560.6,2560.1,0.76718]
[1726816410960,0.39053,2560.5,2560.1,0.3766]
[1726816411165,1.1868,2560.6,2560.1,0.3766]
[1726816411655,1.57732,2560.6,2560.1,0.3766]
[1726816411956,1.57732,2560.6,2559.7,3.2078]
[1726816411957,0.39058,2560.2,2559.7,3.2078]
[1726816412255,0.39058,2560.2,2559.6,1.16156]
[1726816412256,3.9819,2560.1,2559.6,1.16156]
[1726816412457,3.9819,2560.1,2559.6,0.7709]
[1726816412762,1.1699,2560.1,2559.6,1.16156]
[1726816413261,1.1699,2560.1,2559.6,0.7709]
[1726816413459,1.1699,2560.1,2559.6,1.16156]
[1726816413759,1.1699,2560.1,2559.6,0.7709]
[1726816414557,4.76829,2560.1,2559.6,0.7709]
[1726816414762,3.05,2560.0,2559.4,3.2078]
[1726816414953,3.05,2559.6,2559.0,0.8067]
[1726816415151,0.7968,2559.5,2559.0,0.8067]
[1726816415959,3.05,2559.2,2558.6,0.98848424]
[1726816416267,3.2078,2559.1,2558.5,8.1295]
[1726816416456,0.4042,2559.0,2558.5,8.1295]
[1726816416654,0.7968,2559.0,2558.5,8.1295]
[1726816416851,0.7968,2559.0,2558.2,5.38246531]
[1726816416852,3.05,2558.6,2558.2,3.2078]
[1726816417056,6.2578,2558.8,2558.2,3.6143]
[1726816417262,3.05,2558.8,2558.2,3.6143]
[1726816417456,0.7968,2559.0,2558.2,3.6143]
[1726816417655,3.8468,2559.0,2558.2,3.6143]
[1726816418655,0.7968,2559.0,2558.2,3.6143]
[1726816418864,4.121,2559.1,2558.8,3.05]
[1726816419066,0.3736,2559.3,2558.9,0.4065]
[1726816419964,0.4014,2559.2,2558.9,0.4065]
[1726816420459,0.4014,2559.2,2558.6,3.4574]
[1726816421060,3.4514,2559.2,2558.6,3.4574]
[1726816421361,0.4014,2559.2,2558.6,3.4574]
[1726816421565,3.4514,2559.2,2558.6,0.4074]
[1726816421759,3.5926,2559.1,2558.6,0.4074]
[1726816422060,3.5926,2559.1,2558.4,0.411]
[1726816422061,7.3426,2559.1,2558.4,0.411]
[1726816422262,3.2078,2559.0,2558.4,0.411]
[1726816423264,3.2078,2559.0,2558.4,0.80184]
[1726816423455,3.2078,2559.0,2558.4,0.411]
[1726816423658,3.2078,2559.0,2558.4,0.80184]
[1726816424962,3.2078,2559.0,2558.4,0.411]
[1726816425467,3.2078,2559.0,2558.4,0.8174]
[1726816425659,3.2078,2559.0,2558.4,1.20824]
[1726816426160,3.59855,2559.0,2558.4,0.8174]
[1726816426765,3.59855,2559.0,2558.4,1.20824]
[1726816426766,3.2078,2559.0,2558.4,1.20824]
[1726816427171,3.59855,2559.0,2558.4,0.8174]
[1726816427366,3.2078,2559.0,2558.4,1.20824]
[1726816427568,3.2078,2559.0,2558.4,4.41604]
[1726816428282,3.59855,2559.0,2558.4,4.41604]
[1726816428470,3.75,2558.8,2558.1,3.2078]
[1726816428683,3.2078,2558.5,2557.9,0.7923]
[1726816428870,0.39082,2558.6,2557.9,1.18321]
[1726816429070,0.3989,2558.5,2557.9,1.18321]
[1726816429270,0.3989,2558.5,2558.0,0.3909]
[1726816429767,3.6067,2558.5,2557.9,1.18322]
[1726816430085,3.6067,2558.5,2558.0,0.3909]
[1726816430278,3.6067,2558.5,2557.9,1.18321]
[1726816430468,3.6067,2558.5,2558.0,0.3909]
[1726816430873,3.6067,2558.5,2557.9,1.18322]
[1726816431069,3.6067,2558.5,2558.0,0.3909]
[1726816432179,3.6067,2558.5,2557.9,1.18321]
[1726816432375,3.6067,2558.5,2557.9,0.7923]
[1726816432567,3.6067,2558.5,2557.9,1.18321]
[1726816432775,3.6067,2558.5,2557.9,0.7923]
[1726816432969,3.6067,2558.5,2558.0,0.3909]
[1726816433276,3.6067,2558.5,2557.9,1.18321]
[1726816433666,3.6067,2558.5,2557.9,0.7923]
[1726816434165,3.6067,2558.5,2557.9,1.18322]
[1726816434771,3.6067,2558.5,2557.9,4.5423]
[1726816434772,3.2078,2558.5,2557.9,4.5423]
[1726816435074,4.121,2559.1,2558.4,3.2078]
[1726816435273,0.4078,2559.0,2558.7,3.2078]
[1726816435471,0.3806,2559.2,2558.7,3.2078]
[1726816435667,0.7884,2559.2,2558.7,3.2078]
[1726816436069,0.7884,2559.2,2558.5,8.661]
[1726816436368,0.7884,2559.2,2558.6,0.39081]
[1726816436983,0.7884,2559.2,2558.5,5.30182]
[1726816437174,0.7884,2559.2,2558.6,0.39081]
[1726816437371,0.7884,2559.2,2558.5,5.30182]
[1726816437677,0.7884,2559.2,2558.6,0.39081]
[1726816437876,0.7884,2559.2,2558.6,3.59861]
[1726816438379,0.7884,2559.2,2558.7,0.3908]
[1726816438885,0.7884,2559.2,2558.6,3.59861]
[1726816439080,0.7884,2559.2,2558.6,3.2078]
[1726816439283,0.4,2559.5,2558.9,3.2078]
[1726816439576,3.2078,2559.7,2559.0,0.7853]
[1726816439875,7.34846,2559.7,2559.1,0.4055]
[1726816440070,6.9578,2559.7,2559.1,0.4055]
[1726816440275,0.39067,2559.6,2559.1,0.4055]
[1726816440482,0.79839,2559.5,2559.0,3.2078]
[1726816440684,0.4077,2559.5,2559.0,3.2078]
[1726816440868,0.79839,2559.5,2559.0,3.2078]
[1726816441068,0.79839,2559.5,2558.7,0.8076]
[1726816441069,0.79839,2559.5,2558.8,0.39078]
[1726816441479,0.79838,2559.5,2558.7,0.8076]
[1726816441673,0.4077,2559.5,2558.9,0.39077]
[1726816442282,0.79838,2559.5,2558.9,0.39077]
[1726816442484,0.4077,2559.5,2558.7,1.19839]
[1726816442785,3.2078,2559.3,2558.8,0.39078]
[1726816442973,0.3803,2559.2,2558.7,1.19839]
[1726816443295,0.7695,2559.2,2558.9,0.39077]
[1726816443784,0.4077,2559.5,2559.1,0.39073]
[1726816444078,1.1772,2559.5,2559.1,0.39073]
[1726816444277,1.1772,2559.5,2559.2,0.3823]
[1726816448782,1.56788,2559.5,2559.2,0.3823]
[1726816449076,4.61788,2559.5,2558.9,0.77076]
[1726816449471,4.2272,2559.5,2559.0,0.39075]
[1726816449675,4.2272,2559.5,2558.9,0.77076]
[1726816449876,4.2272,2559.5,2559.0,0.39075]
[1726816450070,4.2272,2559.5,2558.9,0.77076]
[1726816450071,4.61788,2559.5,2558.9,0.77076]
[1726816450471,4.2272,2559.5,2559.0,0.39075]
[1726816451270,1.1772,2559.5,2558.9,3.43]
[1726816451469,1.1772,2559.5,2559.2,0.39072]
[1726816451470,0.7695,2559.5,2559.2,0.39072]
[1726816451673,0.7695,2559.5,2559.3,0.3812]
[1726816451970,4.5039,2559.8,2559.3,0.3812]
[1726816451971,0.3829,2559.8,2559.4,3.59848]
[1726816452167,0.4003,2559.8,2559.4,3.6046]
[1726816452382,3.5993,2559.9,2559.8,0.39063]
[1726816452680,3.5993,2559.9,2559.5,0.39067]
[1726816452875,3.5993,2559.9,2559.4,3.6046]
[1726816453087,3.5993,2559.9,2559.5,0.39067]
[1726816454472,3.5993,2559.9,2559.4,3.6046]
[1726816454672,3.05,2559.8,2559.4,3.2078]
[1726816454980,3.05,2559.8,2559.4,3.59849]
[1726816455280,3.05,2559.8,2559.5,0.39068]
[1726816455477,3.5993,2559.9,2559.4,6.64848]
[1726816455977,3.5993,2559.9,2559.5,0.39067]
[1726816456583,3.5993,2559.9,2559.4,6.64848]
[1726816457076,3.5993,2559.9,2559.5,0.411]
[1726816457890,3.2078,2559.9,2559.8,3.44063]
[1726816458183,0.4003,2560.1,2559.9,0.39061]
[1726816458372,0.4003,2560.1,2559.8,3.05]
[1726816458373,0.4003,2560.1,2559.8,3.44062]
[1726816458573,2.76347654,2560.0,2559.9,0.39062]
[1726816459074,2.76347654,2560.0,2559.8,3.83402]
[1726816459475,2.76347654,2560.0,2559.8,3.4434]
[1726816459675,2.14237654,2560.0,2559.9,7.34702]
[1726816459876,0.8126,2560.8,2560.0,0.97651]
[1726816460080,0.8126,2560.8,2560.7,3.05]
[1726816460372,0.3911,2560.9,2560.7,3.05]
[1726816460584,0.3911,2560.9,2560.5,3.8386]
[1726816460881,0.3898,2560.8,2560.5,0.7886]
[1726816461085,0.7784,2560.8,2560.5,0.7886]
[1726816461478,0.7784,2560.8,2560.4,3.2078]
[1726816462585,3.05,2560.7,2560.4,3.2078]
[1726816463380,3.05,2560.7,2560.1,3.59838]
[1726816464079,0.7784,2560.8,2560.1,3.2078]
[1726816464283,0.7784,2560.8,2560.2,0.39056]
[1726816464479,0.7784,2560.8,2560.3,0.39055]
[1726816464880,0.7784,2560.8,2560.4,0.3875]
[1726816466583,0.7784,2560.8,2560.4,0.77803]
[1726816466781,3.2078,2561.3,2560.9,0.39046]
[1726816466981,4.76837,2561.6,2561.0,0.3963]
[1726816467187,0.39038,2561.5,2561.0,0.3963]
[1726816467375,4.76836,2561.6,2561.0,0.78675]
[1726816467583,0.39039,2561.4,2561.0,0.3963]
[1726816467785,4.378,2561.6,2560.8,3.2078]
[1726816467786,0.39041,2561.3,2560.8,3.2078]
[1726816468185,0.39041,2561.3,2560.6,0.7868]
[1726816468186,0.39043,2561.2,2560.6,0.7868]
[1726816468386,3.2078,2561.3,2560.6,0.7868]
[1726816468387,0.3932,2561.1,2560.7,0.39049]
[1726816468581,0.3839,2561.0,2560.7,0.39049]
[1726816470593,0.7863,2561.1,2560.6,0.3963]
[1726816470790,0.3931,2561.1,2560.6,0.3963]
[1726816471087,0.39,2561.4,2560.8,3.2078]
[1726816471290,0.39,2561.4,2561.1,0.39043]
[1726816471495,0.39,2561.4,2561.1,0.39042]
[1726816471683,0.39,2561.4,2560.8,3.2078]
[1726816471889,0.39,2561.4,2561.1,0.39043]
[1726816472080,0.39,2561.4,2561.2,0.7937]
[1726816474790,0.39,2561.4,2561.2,1.18412]
[1726816475893,0.3805,2561.6,2561.2,0.7937]
[1726816476290,0.3805,2561.6,2561.4,0.39039]
[1726816476798,0.3805,2561.6,2561.3,0.39039]
[1726816477203,0.3805,2561.6,2561.4,0.39039]
[1726816477799,0.3805,2561.6,2561.4,0.39038]
[1726816478698,0.3805,2561.6,2561.3,0.39039]
[1726816478889,0.3805,2561.6,2561.2,1.18411]
[1726816479203,0.3805,2561.6,2561.3,0.3904]
[1726816479390,0.3805,2561.6,2561.2,0.7937]
[1726816479391,0.3805,2561.6,2561.2,1.18411]
[1726816479998,4.72567,2562.2,2561.2,1.18411]
[1726816479999,0.21747551,2562.6,2562.1,0.699]
[1726816480205,0.7841,2565.2,2563.3,3.2078]
[1726816480390,0.38984,2565.0,2564.4,3.2078]
[1726816480590,3.2078,2564.8,2563.7,6.9578]
[1726816480895,3.2078,2563.8,2563.7,3.2078]
[1726816481093,3.2078,2563.8,2562.9,8.24399699]
[1726816481094,0.39004,2563.7,2563.0,3.2078]
[1726816481293,0.4058,2563.6,2563.0,3.2078]
[1726816481490,0.4058,2563.6,2563.3,3.2078]
[1726816483396,0.3783,2563.7,2563.3,3.2078]
[1726816483596,0.3931,2564.0,2563.6,7.34784]
[1726816483992,0.3931,2564.0,2563.7,0.39004]
[1726816484198,0.3783,2564.3,2563.9,3.2078]
[1726816484402,0.3783,2564.3,2564.0,3.75]
[1726816485196,0.3783,2564.3,2563.6,6.9578]
[1726816485401,0.3783,2564.3,2563.6,8.295]
[1726816485606,0.3783,2564.3,2563.6,8.68504]
[1726816485903,0.3783,2564.3,2563.6,3.75]
[1726816486209,0.3783,2564.3,2563.7,0.39003]
[1726816486397,0.3783,2564.3,2563.8,3.59782]
[1726816486598,0.3783,2564.3,2563.8,3.2078]
[1726816488197,0.76825,2564.3,2563.8,3.2078]
[1726816488394,0.76825,2564.3,2563.6,4.14005]